{"text_format":"1","workbook":"xlsx","n_sheets":11,"sheets":["Family Tracking","Ward List","Report","Companionships","Google Template","Group Names","District 1","District 2","District 3","test","District 4"],"not_rendered":{"charts":0,"images":0,"macros":1,"external_links":0,"defined_names":1,"comments":0,"pivot_tables":0},"unopened":[],"bounds":{"document_bytes":16777216,"sheet_cells":100000,"rows_first":2000,"rows_last":500,"rows_between":2000,"halvings":0,"cell_chars":16384,"cell_head_chars":4096},"cells_cut":0,"cells_raw":0,"read":"whole","date_system":"1900"}

{"sheet":"Family Tracking","index":0,"n_rows":151,"n_cols":13,"rows_kept":151,"cut":false,"hidden":false,"merged":[]}
["Family","Jan","Feb","Mar","Apr","May","Jun","Jul","Aug","Sept","Oct","Nov","Dec"]
["Vega, Jensen & Callie","x","x","x","x","x","x","x","x","x","x","x","x"]
["Savage, Hugo & Donna"]
["Brennan, Rodolfo & Halle"]
["Mcdowell, Joel & Janelle",null,"x","x","x","x"]
["Elliott, Jaxon & Leanna"]
["Morton, Alijah & Lara",null,null,null,null,null,null,null,null,"x",null,"x"]
["Weeks, Enrique & Elliana",null,null,"x",null,"x",null,"x",null,"x","x","x","x"]
["Curtis, Jakob & Tatiana"]
["Morgan, Gilbert & Abigail"]
["Whitaker, Makai & Alondra"]
["Barber, Edward & Dana"]
["Rocha, Terry & Kaley"]
["Frazier, Cannon & Mckayla"]
["Espinoza, Ahmad & Kassandra",null,null,null,null,"x"]
["Mack, Israel & Scarlett"]
["Stevens, Dominik & Katie"]
["Rivers, Derrick & Deanna"]
["Vincent, Kody & Jayleen",null,null,null,null,null,null,null,"x"]
["Schneider, Barrett & Kayleigh"]
["Pollard, Zachery & Jessie"]
["Daniels, Tobias & Celia",null,null,null,"x",null,null,null,"x"]
["Soto, Wesley & Yazmin",null,"x"]
["Giles, Jamal & Daphne"]
["Steele, Shane & Alannah",null,null,null,null,null,"x",null,null,"x","x"]
["Murillo, Jude & Lesly"]
["Fletcher, Leonard & Anika",null,"x"]
["Short, Jonathon & Presley",null,null,null,"x"]
["Wallace, Devan & Danielle"]
["Cervantes, Antonio & Samantha",null,"x"]
["Joyce, Bruno & Kathy"]
["Guzman, Jordon & Annabelle"]
["Woodard, Elisha & Dalia"]
["Houston, Allan & Cora"]
["Rush, Demarion & Aryana"]
["Burns, Randy & Kennedy"]
["Travis, Charlie & Maria"]
["Stuart, Alvaro & Juliet"]
["Hernandez, Franklin & Mireya"]
["Blair, Kolton & Karli"]
["Arellano, Nash & Krystal"]
["Pennington, Edwin & Renee"]
["Carlson, Kevin & Emelia"]
["Hart, Damion & Mila"]
["Cochran, Jorge & Jacquelyn"]
["Marks, Adrien & Angie"]
["Walter, Zavier & Campbell"]
["Dickson, Gabriel & Heidi"]
["Mckay, Rishi & Carmen"]
["Buchanan, Jefferson & Mara"]
["Alvarado, Semaj & Jadyn"]
["Compton, Maximillian & Adelaide"]
["Warner, Gauge & Cara"]
["Reilly, Ellis & Jada"]
["Shields, Drew & Leslie"]
["Valdez, Luka & Nadia"]
["Sanford, Calvin & Azaria"]
["Boyd, Allen & Nyla"]
["Santos, Alessandro & Naomi"]
["Stafford, Manuel & Diamond"]
["Hunter, Melvin & Keyla"]
["Mercado, Jonathan & Kaylah"]
["Love, Jaydon & Phoenix"]
["Fuentes, Colten & Aurora"]
["Vargas, Michael & Maddison"]
["Zimmerman, Kelvin & June"]
["Boyer, Cole & Skye"]
["Pace, Keegan & Katherine"]
["Flores, Morgan & Giuliana"]
["Robles, Ryder & Courtney"]
["Moyer, German & Sydney"]
["Fields, Abel & Jazmyn"]
["Nguyen, Ronald & Jessica"]
["Todd, Conor & Peyton"]
["Mcguire, Brennen & Kristin"]
["Diaz, Kasey & Annie"]
["Pierce, Alonso & Natalee"]
["Spence, Soren & Rosa"]
["Chandler, Matthias & Noelle"]
["Lynch, Karter & Leyla"]
["Mcdaniel, Roberto & Lyla"]
["Mason, Felix & Giana"]
["Nunez, Jesus & Kaylen"]
["Tyler, Clarence & Lainey"]
["Randolph, Jayden & Journey"]
["Ayala, Tripp & Maya"]
["Everett, Reed & Trinity"]
["Mccullough, Marcel & Sara"]
["Schroeder, Samir & Jaelyn"]
["Burch, Matias & Alaina"]
["Kent, Isai & Pamela"]
["Rubio, Callum & Kenley"]
["Miranda, Rolando & Madalynn"]
["Zuniga, Tristin & Dania"]
["Ashley, Kaiden & Joslyn"]
["Gentry, Jonas & Marlene"]
["Beltran, Hugh & Molly"]
["Berger, Diego & Kallie"]
["Nelson, Cortez & Kenna"]
["Waters, Xavier & Delaney"]
["Hamilton, Mohamed & Kali"]
["Bowen, Bryson & Alessandra"]
["Ramos, Vaughn & Elle"]
["Reese, Emmanuel & Yasmine"]
["Thompson, Jackson & Karla"]
["Conner, Casey & Sanai"]
["Davila, Connor & Juliette"]
["Baxter, Dane & Kate"]
["Marquez, Valentin & Emilie"]
["Wise, Harold & Maritza"]
["Price, Jerry & Charlie"]
["Sexton, Elijah & Tamia"]
["Wheeler, Beau & Avah"]
["Finley, Camren & Maci",null,null,null,"x",null,"x",null,"x"]
["Rosales, Jerimiah & Shaylee"]
["Solomon, Mason & Kathleen"]
["Landry, Scott & Mattie"]
["Sanders, Logan & Shayna"]
["Wilkerson, Jaiden & Tianna"]
["Estrada, Ralph & Jocelynn"]
["Melendez, Johnathon & Neveah"]
["Graves, Jared & Anaya"]
["Randall, Matthew & Ciara"]
["Franklin, Tate & Dayanara"]
["Carter, Sergio & Stephany"]
["Douglas, Case & Cloe"]
["Merritt, Eli & Cecilia"]
["Doyle, Rayan & Makaila"]
["Wang, Bradley & Gia"]
["Dodson, Zachariah & Malia",null,null,null,null,null,"x",null,null,"x"]
["Mcgee, Rodrigo & Hayden"]
["Rodriguez, Braden & Ann"]
["Dickerson, Aaron & Stella"]
["Garrett, Konner & Chasity"]
["Mckenzie, Chaz & Harper"]
["Jensen, Kian & Emily"]
["Cline, Ian & Lydia",null,null,null,null,"x","x","x"]
["Chan, Pablo & Abigayle"]
["Yoder, Yosef & Kylee"]
["Proctor, Trenton & Hailey",null,null,"x","x","x","x"]
["Bass, Kylan & Mikaela"]
["Hays, Addison & Erika"]
["Cunningham, Sullivan & Yareli"]
["Fowler, Rhys & Myah",null,null,"x",null,"x",null,null,null,null,null,"x"]
["Hanson, Omari & Melina"]
["Lozano, Maurice & Annabella"]
["Lowe, Ariel & Victoria"]
["Barrett, Harry & Evelin"]
["Park, Donovan & Cheyenne"]
["Glenn, Lamar & Madeline",null,null,null,null,"x",null,null,"x",null,"x"]
["Knapp, Andre & Savanna",null,null,null,null,null,"x","x","x","x","x"]

{"sheet":"Ward List","index":1,"n_rows":151,"n_cols":11,"rows_kept":151,"cut":false,"hidden":false,"merged":[]}
["Family Name","Couple Name","Family Phone","Family Email","Family Address","Head Of House Name","Head Of House Phone","Head Of House Email","Spouse Name","Spouse Phone","Spouse Email"]
["Vega","Vega, Jensen & Callie"," (441) 616-4103"," Jensen.Vega@gmail.com","494 4th Street North Provo, UT 84604","Vega, Jensen"," (441) 616-4103"," Jensen.Vega@gmail.com","Vega, Callie"," (441) 616-4103"," Callie.Vega@gmail.com"]
["Savage","Savage, Hugo & Donna"," (754) 681-694"," Hugo.Savage@gmail.com","61 Lafayette Street Provo, UT 84604","Savage, Hugo"," (754) 681-694"," Hugo.Savage@gmail.com","Savage, Donna"," (754) 681-694"," Donna.Savage@gmail.com"]
["Brennan","Brennan, Rodolfo & Halle"," (95) 947-9467"," Rodolfo.Brennan@gmail.com","938 Valley Drive Provo, UT 84604","Brennan, Rodolfo"," (95) 947-9467"," Rodolfo.Brennan@gmail.com","Brennan, Halle"," (95) 947-9467"," Halle.Brennan@gmail.com"]
["Mcdowell","Mcdowell, Joel & Janelle"," (467) 311-9457"," Joel.Mcdowell@gmail.com","26 Harrison Avenue Provo, UT 84604","Mcdowell, Joel"," (467) 311-9457"," Joel.Mcdowell@gmail.com","Mcdowell, Janelle"," (467) 311-9457"," Janelle.Mcdowell@gmail.com"]
["Elliott","Elliott, Jaxon & Leanna"," (640) 41-1009"," Jaxon.Elliott@gmail.com","726 Walnut Avenue Provo, UT 84604","Elliott, Jaxon"," (640) 41-1009"," Jaxon.Elliott@gmail.com","Elliott, Leanna"," (640) 41-1009"," Leanna.Elliott@gmail.com"]
["Morton","Morton, Alijah & Lara"," (362) 59-5551"," Alijah.Morton@gmail.com","545 Clark Street Provo, UT 84604","Morton, Alijah"," (362) 59-5551"," Alijah.Morton@gmail.com","Morton, Lara"," (362) 59-5551"," Lara.Morton@gmail.com"]
["Weeks","Weeks, Enrique & Elliana"," (363) 285-8498"," Enrique.Weeks@gmail.com","309 Ivy Court Provo, UT 84604","Weeks, Enrique"," (363) 285-8498"," Enrique.Weeks@gmail.com","Weeks, Elliana"," (363) 285-8498"," Elliana.Weeks@gmail.com"]
["Curtis","Curtis, Jakob & Tatiana"," (838) 777-5705"," Jakob.Curtis@gmail.com","738 Williams Street Provo, UT 84604","Curtis, Jakob"," (838) 777-5705"," Jakob.Curtis@gmail.com","Curtis, Tatiana"," (838) 777-5705"," Tatiana.Curtis@gmail.com"]
["Morgan","Morgan, Gilbert & Abigail"," (55) 584-8760"," Gilbert.Morgan@gmail.com","614 Carriage Drive Provo, UT 84604","Morgan, Gilbert"," (55) 584-8760"," Gilbert.Morgan@gmail.com","Morgan, Abigail"," (55) 584-8760"," Abigail.Morgan@gmail.com"]
["Whitaker","Whitaker, Makai & Alondra"," (782) 465-2802"," Makai.Whitaker@gmail.com","155 Riverside Drive Provo, UT 84604","Whitaker, Makai"," (782) 465-2802"," Makai.Whitaker@gmail.com","Whitaker, Alondra"," (782) 465-2802"," Alondra.Whitaker@gmail.com"]
["Barber","Barber, Edward & Dana"," (363) 813-50"," Edward.Barber@gmail.com","252 Elmwood Avenue Provo, UT 84604","Barber, Edward"," (363) 813-50"," Edward.Barber@gmail.com","Barber, Dana"," (363) 813-50"," Dana.Barber@gmail.com"]
["Rocha","Rocha, Terry & Kaley"," (740) 722-3151"," Terry.Rocha@gmail.com","557 5th Street Provo, UT 84604","Rocha, Terry"," (740) 722-3151"," Terry.Rocha@gmail.com","Rocha, Kaley"," (740) 722-3151"," Kaley.Rocha@gmail.com"]
["Frazier","Frazier, Cannon & Mckayla"," (736) 670-4588"," Cannon.Frazier@gmail.com","363 Sunset Drive Provo, UT 84604","Frazier, Cannon"," (736) 670-4588"," Cannon.Frazier@gmail.com","Frazier, Mckayla"," (736) 670-4588"," Mckayla.Frazier@gmail.com"]
["Espinoza","Espinoza, Ahmad & Kassandra"," (657) 788-5241"," Ahmad.Espinoza@gmail.com","106 School Street Provo, UT 84604","Espinoza, Ahmad"," (657) 788-5241"," Ahmad.Espinoza@gmail.com","Espinoza, Kassandra"," (657) 788-5241"," Kassandra.Espinoza@gmail.com"]
["Mack","Mack, Israel & Scarlett"," (87) 728-7379"," Israel.Mack@gmail.com","492 4th Street West Provo, UT 84604","Mack, Israel"," (87) 728-7379"," Israel.Mack@gmail.com","Mack, Scarlett"," (87) 728-7379"," Scarlett.Mack@gmail.com"]
["Stevens","Stevens, Dominik & Katie"," (61) 575-3309"," Dominik.Stevens@gmail.com","836 Hartford Road Provo, UT 84604","Stevens, Dominik"," (61) 575-3309"," Dominik.Stevens@gmail.com","Stevens, Katie"," (61) 575-3309"," Katie.Stevens@gmail.com"]
["Rivers","Rivers, Derrick & Deanna"," (520) 562-4372"," Derrick.Rivers@gmail.com","638 Roberts Road Provo, UT 84604","Rivers, Derrick"," (520) 562-4372"," Derrick.Rivers@gmail.com","Rivers, Deanna"," (520) 562-4372"," Deanna.Rivers@gmail.com"]
["Vincent","Vincent, Kody & Jayleen"," (268) 401-3234"," Kody.Vincent@gmail.com","75 3rd Street East Provo, UT 84604","Vincent, Kody"," (268) 401-3234"," Kody.Vincent@gmail.com","Vincent, Jayleen"," (268) 401-3234"," Jayleen.Vincent@gmail.com"]
["Schneider","Schneider, Barrett & Kayleigh"," (89) 303-9630"," Barrett.Schneider@gmail.com","448 Charles Street Provo, UT 84604","Schneider, Barrett"," (89) 303-9630"," Barrett.Schneider@gmail.com","Schneider, Kayleigh"," (89) 303-9630"," Kayleigh.Schneider@gmail.com"]
["Pollard","Pollard, Zachery & Jessie"," (229) 48-9082"," Zachery.Pollard@gmail.com","832 Cooper Street Provo, UT 84604","Pollard, Zachery"," (229) 48-9082"," Zachery.Pollard@gmail.com","Pollard, Jessie"," (229) 48-9082"," Jessie.Pollard@gmail.com"]
["Daniels","Daniels, Tobias & Celia"," (617) 354-2955"," Tobias.Daniels@gmail.com","104 Sheffield Drive Provo, UT 84604","Daniels, Tobias"," (617) 354-2955"," Tobias.Daniels@gmail.com","Daniels, Celia"," (617) 354-2955"," Celia.Daniels@gmail.com"]
["Soto","Soto, Wesley & Yazmin"," (484) 285-8493"," Wesley.Soto@gmail.com","153 Elizabeth Street Provo, UT 84604","Soto, Wesley"," (484) 285-8493"," Wesley.Soto@gmail.com","Soto, Yazmin"," (484) 285-8493"," Yazmin.Soto@gmail.com"]
["Giles","Giles, Jamal & Daphne"," (525) 816-7985"," Jamal.Giles@gmail.com","706 B Street Provo, UT 84604","Giles, Jamal"," (525) 816-7985"," Jamal.Giles@gmail.com","Giles, Daphne"," (525) 816-7985"," Daphne.Giles@gmail.com"]
["Steele","Steele, Shane & Alannah"," (780) 161-653"," Shane.Steele@gmail.com","819 Academy Street Provo, UT 84604","Steele, Shane"," (780) 161-653"," Shane.Steele@gmail.com","Steele, Alannah"," (780) 161-653"," Alannah.Steele@gmail.com"]
["Murillo","Murillo, Jude & Lesly"," (496) 883-2193"," Jude.Murillo@gmail.com","474 Fairview Road Provo, UT 84604","Murillo, Jude"," (496) 883-2193"," Jude.Murillo@gmail.com","Murillo, Lesly"," (496) 883-2193"," Lesly.Murillo@gmail.com"]
["Fletcher","Fletcher, Leonard & Anika"," (634) 952-8411"," Leonard.Fletcher@gmail.com","363 Warren Avenue Provo, UT 84604","Fletcher, Leonard"," (634) 952-8411"," Leonard.Fletcher@gmail.com","Fletcher, Anika"," (634) 952-8411"," Anika.Fletcher@gmail.com"]
["Short","Short, Jonathon & Presley"," (729) 835-7308"," Jonathon.Short@gmail.com","236 Windsor Drive Provo, UT 84604","Short, Jonathon"," (729) 835-7308"," Jonathon.Short@gmail.com","Short, Presley"," (729) 835-7308"," Presley.Short@gmail.com"]
["Wallace","Wallace, Devan & Danielle"," (224) 153-2512"," Devan.Wallace@gmail.com","307 Route 202 Provo, UT 84604","Wallace, Devan"," (224) 153-2512"," Devan.Wallace@gmail.com","Wallace, Danielle"," (224) 153-2512"," Danielle.Wallace@gmail.com"]
["Cervantes","Cervantes, Antonio & Samantha"," (781) 641-3822"," Antonio.Cervantes@gmail.com","413 2nd Street Provo, UT 84604","Cervantes, Antonio"," (781) 641-3822"," Antonio.Cervantes@gmail.com","Cervantes, Samantha"," (781) 641-3822"," Samantha.Cervantes@gmail.com"]
["Joyce","Joyce, Bruno & Kathy"," (975) 275-4026"," Bruno.Joyce@gmail.com","346 Grant Avenue Provo, UT 84604","Joyce, Bruno"," (975) 275-4026"," Bruno.Joyce@gmail.com","Joyce, Kathy"," (975) 275-4026"," Kathy.Joyce@gmail.com"]
["Guzman","Guzman, Jordon & Annabelle"," (94) 561-7211"," Jordon.Guzman@gmail.com","633 Grant Street Provo, UT 84604","Guzman, Jordon"," (94) 561-7211"," Jordon.Guzman@gmail.com","Guzman, Annabelle"," (94) 561-7211"," Annabelle.Guzman@gmail.com"]
["Woodard","Woodard, Elisha & Dalia"," (368) 798-2229"," Elisha.Woodard@gmail.com","180 Lake Street Provo, UT 84604","Woodard, Elisha"," (368) 798-2229"," Elisha.Woodard@gmail.com","Woodard, Dalia"," (368) 798-2229"," Dalia.Woodard@gmail.com"]
["Houston","Houston, Allan & Cora"," (563) 774-6737"," Allan.Houston@gmail.com","767 Somerset Drive Provo, UT 84604","Houston, Allan"," (563) 774-6737"," Allan.Houston@gmail.com","Houston, Cora"," (563) 774-6737"," Cora.Houston@gmail.com"]
["Rush","Rush, Demarion & Aryana"," (636) 579-6414"," Demarion.Rush@gmail.com","273 Mill Street Provo, UT 84604","Rush, Demarion"," (636) 579-6414"," Demarion.Rush@gmail.com","Rush, Aryana"," (636) 579-6414"," Aryana.Rush@gmail.com"]
["Burns","Burns, Randy & Kennedy"," (660) 257-8635"," Randy.Burns@gmail.com","893 Jackson Street Provo, UT 84604","Burns, Randy"," (660) 257-8635"," Randy.Burns@gmail.com","Burns, Kennedy"," (660) 257-8635"," Kennedy.Burns@gmail.com"]
["Travis","Travis, Charlie & Maria"," (613) 807-4393"," Charlie.Travis@gmail.com","463 2nd Avenue Provo, UT 84604","Travis, Charlie"," (613) 807-4393"," Charlie.Travis@gmail.com","Travis, Maria"," (613) 807-4393"," Maria.Travis@gmail.com"]
["Stuart","Stuart, Alvaro & Juliet"," (25) 896-80"," Alvaro.Stuart@gmail.com","219 8th Street West Provo, UT 84604","Stuart, Alvaro"," (25) 896-80"," Alvaro.Stuart@gmail.com","Stuart, Juliet"," (25) 896-80"," Juliet.Stuart@gmail.com"]
["Hernandez","Hernandez, Franklin & Mireya"," (382) 363-3477"," Franklin.Hernandez@gmail.com","194 Meadow Lane Provo, UT 84604","Hernandez, Franklin"," (382) 363-3477"," Franklin.Hernandez@gmail.com","Hernandez, Mireya"," (382) 363-3477"," Mireya.Hernandez@gmail.com"]
["Blair","Blair, Kolton & Karli"," (744) 509-730"," Kolton.Blair@gmail.com","11 3rd Street Provo, UT 84604","Blair, Kolton"," (744) 509-730"," Kolton.Blair@gmail.com","Blair, Karli"," (744) 509-730"," Karli.Blair@gmail.com"]
["Arellano","Arellano, Nash & Krystal"," (880) 190-9944"," Nash.Arellano@gmail.com","966 Church Street Provo, UT 84604","Arellano, Nash"," (880) 190-9944"," Nash.Arellano@gmail.com","Arellano, Krystal"," (880) 190-9944"," Krystal.Arellano@gmail.com"]
["Pennington","Pennington, Edwin & Renee"," (544) 478-9936"," Edwin.Pennington@gmail.com","340 7th Street Provo, UT 84604","Pennington, Edwin"," (544) 478-9936"," Edwin.Pennington@gmail.com","Pennington, Renee"," (544) 478-9936"," Renee.Pennington@gmail.com"]
["Carlson","Carlson, Kevin & Emelia"," (297) 955-6342"," Kevin.Carlson@gmail.com","844 Mulberry Lane Provo, UT 84604","Carlson, Kevin"," (297) 955-6342"," Kevin.Carlson@gmail.com","Carlson, Emelia"," (297) 955-6342"," Emelia.Carlson@gmail.com"]
["Hart","Hart, Damion & Mila"," (430) 230-2343"," Damion.Hart@gmail.com","818 Briarwood Court Provo, UT 84604","Hart, Damion"," (430) 230-2343"," Damion.Hart@gmail.com","Hart, Mila"," (430) 230-2343"," Mila.Hart@gmail.com"]
["Cochran","Cochran, Jorge & Jacquelyn"," (623) 208-8836"," Jorge.Cochran@gmail.com","596 Lakeview Drive Provo, UT 84604","Cochran, Jorge"," (623) 208-8836"," Jorge.Cochran@gmail.com","Cochran, Jacquelyn"," (623) 208-8836"," Jacquelyn.Cochran@gmail.com"]
["Marks","Marks, Adrien & Angie"," (386) 202-6054"," Adrien.Marks@gmail.com","385 5th Street North Provo, UT 84604","Marks, Adrien"," (386) 202-6054"," Adrien.Marks@gmail.com","Marks, Angie"," (386) 202-6054"," Angie.Marks@gmail.com"]
["Walter","Walter, Zavier & Campbell"," (475) 160-5913"," Zavier.Walter@gmail.com","198 Cobblestone Court Provo, UT 84604","Walter, Zavier"," (475) 160-5913"," Zavier.Walter@gmail.com","Walter, Campbell"," (475) 160-5913"," Campbell.Walter@gmail.com"]
["Dickson","Dickson, Gabriel & Heidi"," (361) 141-9610"," Gabriel.Dickson@gmail.com","665 Hickory Street Provo, UT 84604","Dickson, Gabriel"," (361) 141-9610"," Gabriel.Dickson@gmail.com","Dickson, Heidi"," (361) 141-9610"," Heidi.Dickson@gmail.com"]
["Mckay","Mckay, Rishi & Carmen"," (391) 388-4575"," Rishi.Mckay@gmail.com","995 North Avenue Provo, UT 84604","Mckay, Rishi"," (391) 388-4575"," Rishi.Mckay@gmail.com","Mckay, Carmen"," (391) 388-4575"," Carmen.Mckay@gmail.com"]
["Buchanan","Buchanan, Jefferson & Mara"," (625) 791-3514"," Jefferson.Buchanan@gmail.com","818 Hillside Drive Provo, UT 84604","Buchanan, Jefferson"," (625) 791-3514"," Jefferson.Buchanan@gmail.com","Buchanan, Mara"," (625) 791-3514"," Mara.Buchanan@gmail.com"]
["Alvarado","Alvarado, Semaj & Jadyn"," (339) 580-6372"," Semaj.Alvarado@gmail.com","22 Crescent Street Provo, UT 84604","Alvarado, Semaj"," (339) 580-6372"," Semaj.Alvarado@gmail.com","Alvarado, Jadyn"," (339) 580-6372"," Jadyn.Alvarado@gmail.com"]
["Compton","Compton, Maximillian & Adelaide"," (286) 912-2926"," Maximillian.Compton@gmail.com","57 Windsor Court Provo, UT 84604","Compton, Maximillian"," (286) 912-2926"," Maximillian.Compton@gmail.com","Compton, Adelaide"," (286) 912-2926"," Adelaide.Compton@gmail.com"]
["Warner","Warner, Gauge & Cara"," (667) 595-4710"," Gauge.Warner@gmail.com","437 Park Place Provo, UT 84604","Warner, Gauge"," (667) 595-4710"," Gauge.Warner@gmail.com","Warner, Cara"," (667) 595-4710"," Cara.Warner@gmail.com"]
["Reilly","Reilly, Ellis & Jada"," (898) 419-6478"," Ellis.Reilly@gmail.com","218 Route 70 Provo, UT 84604","Reilly, Ellis"," (898) 419-6478"," Ellis.Reilly@gmail.com","Reilly, Jada"," (898) 419-6478"," Jada.Reilly@gmail.com"]
["Shields","Shields, Drew & Leslie"," (474) 137-8406"," Drew.Shields@gmail.com","174 Lake Avenue Provo, UT 84604","Shields, Drew"," (474) 137-8406"," Drew.Shields@gmail.com","Shields, Leslie"," (474) 137-8406"," Leslie.Shields@gmail.com"]
["Valdez","Valdez, Luka & Nadia"," (90) 77-2513"," Luka.Valdez@gmail.com","683 Jackson Avenue Provo, UT 84604","Valdez, Luka"," (90) 77-2513"," Luka.Valdez@gmail.com","Valdez, Nadia"," (90) 77-2513"," Nadia.Valdez@gmail.com"]
["Sanford","Sanford, Calvin & Azaria"," (490) 767-3039"," Calvin.Sanford@gmail.com","679 Mill Road Provo, UT 84604","Sanford, Calvin"," (490) 767-3039"," Calvin.Sanford@gmail.com","Sanford, Azaria"," (490) 767-3039"," Azaria.Sanford@gmail.com"]
["Boyd","Boyd, Allen & Nyla"," (428) 960-1570"," Allen.Boyd@gmail.com","883 Woodland Avenue Provo, UT 84604","Boyd, Allen"," (428) 960-1570"," Allen.Boyd@gmail.com","Boyd, Nyla"," (428) 960-1570"," Nyla.Boyd@gmail.com"]
["Santos","Santos, Alessandro & Naomi"," (773) 538-4832"," Alessandro.Santos@gmail.com","291 Delaware Avenue Provo, UT 84604","Santos, Alessandro"," (773) 538-4832"," Alessandro.Santos@gmail.com","Santos, Naomi"," (773) 538-4832"," Naomi.Santos@gmail.com"]
["Stafford","Stafford, Manuel & Diamond"," (581) 37-8408"," Manuel.Stafford@gmail.com","67 4th Street South Provo, UT 84604","Stafford, Manuel"," (581) 37-8408"," Manuel.Stafford@gmail.com","Stafford, Diamond"," (581) 37-8408"," Diamond.Stafford@gmail.com"]
["Hunter","Hunter, Melvin & Keyla"," (360) 708-5047"," Melvin.Hunter@gmail.com","269 12th Street Provo, UT 84604","Hunter, Melvin"," (360) 708-5047"," Melvin.Hunter@gmail.com","Hunter, Keyla"," (360) 708-5047"," Keyla.Hunter@gmail.com"]
["Mercado","Mercado, Jonathan & Kaylah"," (49) 448-6892"," Jonathan.Mercado@gmail.com","898 Brook Lane Provo, UT 84604","Mercado, Jonathan"," (49) 448-6892"," Jonathan.Mercado@gmail.com","Mercado, Kaylah"," (49) 448-6892"," Kaylah.Mercado@gmail.com"]
["Love","Love, Jaydon & Phoenix"," (241) 442-2613"," Jaydon.Love@gmail.com","194 Holly Court Provo, UT 84604","Love, Jaydon"," (241) 442-2613"," Jaydon.Love@gmail.com","Love, Phoenix"," (241) 442-2613"," Phoenix.Love@gmail.com"]
["Fuentes","Fuentes, Colten & Aurora"," (822) 930-8071"," Colten.Fuentes@gmail.com","62 Country Lane Provo, UT 84604","Fuentes, Colten"," (822) 930-8071"," Colten.Fuentes@gmail.com","Fuentes, Aurora"," (822) 930-8071"," Aurora.Fuentes@gmail.com"]
["Vargas","Vargas, Michael & Maddison"," (860) 160-8653"," Michael.Vargas@gmail.com","918 Grove Street Provo, UT 84604","Vargas, Michael"," (860) 160-8653"," Michael.Vargas@gmail.com","Vargas, Maddison"," (860) 160-8653"," Maddison.Vargas@gmail.com"]
["Zimmerman","Zimmerman, Kelvin & June"," (342) 300-174"," Kelvin.Zimmerman@gmail.com","112 James Street Provo, UT 84604","Zimmerman, Kelvin"," (342) 300-174"," Kelvin.Zimmerman@gmail.com","Zimmerman, June"," (342) 300-174"," June.Zimmerman@gmail.com"]
["Boyer","Boyer, Cole & Skye"," (891) 915-1453"," Cole.Boyer@gmail.com","891 Ridge Avenue Provo, UT 84604","Boyer, Cole"," (891) 915-1453"," Cole.Boyer@gmail.com","Boyer, Skye"," (891) 915-1453"," Skye.Boyer@gmail.com"]
["Pace","Pace, Keegan & Katherine"," (426) 599-6628"," Keegan.Pace@gmail.com","921 Garden Street Provo, UT 84604","Pace, Keegan"," (426) 599-6628"," Keegan.Pace@gmail.com","Pace, Katherine"," (426) 599-6628"," Katherine.Pace@gmail.com"]
["Flores","Flores, Morgan & Giuliana"," (298) 910-2217"," Morgan.Flores@gmail.com","150 Chestnut Street Provo, UT 84604","Flores, Morgan"," (298) 910-2217"," Morgan.Flores@gmail.com","Flores, Giuliana"," (298) 910-2217"," Giuliana.Flores@gmail.com"]
["Robles","Robles, Ryder & Courtney"," (345) 428-611"," Ryder.Robles@gmail.com","960 Harrison Street Provo, UT 84604","Robles, Ryder"," (345) 428-611"," Ryder.Robles@gmail.com","Robles, Courtney"," (345) 428-611"," Courtney.Robles@gmail.com"]
["Moyer","Moyer, German & Sydney"," (466) 386-5194"," German.Moyer@gmail.com","181 Summit Street Provo, UT 84604","Moyer, German"," (466) 386-5194"," German.Moyer@gmail.com","Moyer, Sydney"," (466) 386-5194"," Sydney.Moyer@gmail.com"]
["Fields","Fields, Abel & Jazmyn"," (60) 566-8240"," Abel.Fields@gmail.com","149 Valley View Road Provo, UT 84604","Fields, Abel"," (60) 566-8240"," Abel.Fields@gmail.com","Fields, Jazmyn"," (60) 566-8240"," Jazmyn.Fields@gmail.com"]
["Nguyen","Nguyen, Ronald & Jessica"," (494) 478-6120"," Ronald.Nguyen@gmail.com","226 Linden Street Provo, UT 84604","Nguyen, Ronald"," (494) 478-6120"," Ronald.Nguyen@gmail.com","Nguyen, Jessica"," (494) 478-6120"," Jessica.Nguyen@gmail.com"]
["Todd","Todd, Conor & Peyton"," (688) 244-1155"," Conor.Todd@gmail.com","955 9th Street West Provo, UT 84604","Todd, Conor"," (688) 244-1155"," Conor.Todd@gmail.com","Todd, Peyton"," (688) 244-1155"," Peyton.Todd@gmail.com"]
["Mcguire","Mcguire, Brennen & Kristin"," (934) 469-1248"," Brennen.Mcguire@gmail.com","4 Myrtle Street Provo, UT 84604","Mcguire, Brennen"," (934) 469-1248"," Brennen.Mcguire@gmail.com","Mcguire, Kristin"," (934) 469-1248"," Kristin.Mcguire@gmail.com"]
["Diaz","Diaz, Kasey & Annie"," (226) 40-7402"," Kasey.Diaz@gmail.com","928 Cedar Avenue Provo, UT 84604","Diaz, Kasey"," (226) 40-7402"," Kasey.Diaz@gmail.com","Diaz, Annie"," (226) 40-7402"," Annie.Diaz@gmail.com"]
["Pierce","Pierce, Alonso & Natalee"," (730) 204-2822"," Alonso.Pierce@gmail.com","885 State Street Provo, UT 84604","Pierce, Alonso"," (730) 204-2822"," Alonso.Pierce@gmail.com","Pierce, Natalee"," (730) 204-2822"," Natalee.Pierce@gmail.com"]
["Spence","Spence, Soren & Rosa"," (621) 445-5951"," Soren.Spence@gmail.com","389 Fairview Avenue Provo, UT 84604","Spence, Soren"," (621) 445-5951"," Soren.Spence@gmail.com","Spence, Rosa"," (621) 445-5951"," Rosa.Spence@gmail.com"]
["Chandler","Chandler, Matthias & Noelle"," (271) 783-2040"," Matthias.Chandler@gmail.com","378 Mechanic Street Provo, UT 84604","Chandler, Matthias"," (271) 783-2040"," Matthias.Chandler@gmail.com","Chandler, Noelle"," (271) 783-2040"," Noelle.Chandler@gmail.com"]
["Lynch","Lynch, Karter & Leyla"," (963) 861-1460"," Karter.Lynch@gmail.com","393 Evergreen Drive Provo, UT 84604","Lynch, Karter"," (963) 861-1460"," Karter.Lynch@gmail.com","Lynch, Leyla"," (963) 861-1460"," Leyla.Lynch@gmail.com"]
["Mcdaniel","Mcdaniel, Roberto & Lyla"," (546) 255-9940"," Roberto.Mcdaniel@gmail.com","650 Heather Lane Provo, UT 84604","Mcdaniel, Roberto"," (546) 255-9940"," Roberto.Mcdaniel@gmail.com","Mcdaniel, Lyla"," (546) 255-9940"," Lyla.Mcdaniel@gmail.com"]
["Mason","Mason, Felix & Giana"," (642) 485-7602"," Felix.Mason@gmail.com","23 6th Avenue Provo, UT 84604","Mason, Felix"," (642) 485-7602"," Felix.Mason@gmail.com","Mason, Giana"," (642) 485-7602"," Giana.Mason@gmail.com"]
["Nunez","Nunez, Jesus & Kaylen"," (592) 498-509"," Jesus.Nunez@gmail.com","722 3rd Street North Provo, UT 84604","Nunez, Jesus"," (592) 498-509"," Jesus.Nunez@gmail.com","Nunez, Kaylen"," (592) 498-509"," Kaylen.Nunez@gmail.com"]
["Tyler","Tyler, Clarence & Lainey"," (588) 200-3055"," Clarence.Tyler@gmail.com","15 Valley Road Provo, UT 84604","Tyler, Clarence"," (588) 200-3055"," Clarence.Tyler@gmail.com","Tyler, Lainey"," (588) 200-3055"," Lainey.Tyler@gmail.com"]
["Randolph","Randolph, Jayden & Journey"," (979) 585-9546"," Jayden.Randolph@gmail.com","923 Pennsylvania Avenue Provo, UT 84604","Randolph, Jayden"," (979) 585-9546"," Jayden.Randolph@gmail.com","Randolph, Journey"," (979) 585-9546"," Journey.Randolph@gmail.com"]
["Ayala","Ayala, Tripp & Maya"," (430) 472-7270"," Tripp.Ayala@gmail.com","694 Pin Oak Drive Provo, UT 84604","Ayala, Tripp"," (430) 472-7270"," Tripp.Ayala@gmail.com","Ayala, Maya"," (430) 472-7270"," Maya.Ayala@gmail.com"]
["Everett","Everett, Reed & Trinity"," (343) 840-5007"," Reed.Everett@gmail.com","964 Fawn Court Provo, UT 84604","Everett, Reed"," (343) 840-5007"," Reed.Everett@gmail.com","Everett, Trinity"," (343) 840-5007"," Trinity.Everett@gmail.com"]
["Mccullough","Mccullough, Marcel & Sara"," (359) 430-2653"," Marcel.Mccullough@gmail.com","906 Lilac Lane Provo, UT 84604","Mccullough, Marcel"," (359) 430-2653"," Marcel.Mccullough@gmail.com","Mccullough, Sara"," (359) 430-2653"," Sara.Mccullough@gmail.com"]
["Schroeder","Schroeder, Samir & Jaelyn"," (235) 116-4573"," Samir.Schroeder@gmail.com","115 Orange Street Provo, UT 84604","Schroeder, Samir"," (235) 116-4573"," Samir.Schroeder@gmail.com","Schroeder, Jaelyn"," (235) 116-4573"," Jaelyn.Schroeder@gmail.com"]
["Burch","Burch, Matias & Alaina"," (234) 327-3427"," Matias.Burch@gmail.com","366 Poplar Street Provo, UT 84604","Burch, Matias"," (234) 327-3427"," Matias.Burch@gmail.com","Burch, Alaina"," (234) 327-3427"," Alaina.Burch@gmail.com"]
["Kent","Kent, Isai & Pamela"," (321) 846-6807"," Isai.Kent@gmail.com","208 Virginia Avenue Provo, UT 84604","Kent, Isai"," (321) 846-6807"," Isai.Kent@gmail.com","Kent, Pamela"," (321) 846-6807"," Pamela.Kent@gmail.com"]
["Rubio","Rubio, Callum & Kenley"," (369) 590-9526"," Callum.Rubio@gmail.com","10 Bayberry Drive Provo, UT 84604","Rubio, Callum"," (369) 590-9526"," Callum.Rubio@gmail.com","Rubio, Kenley"," (369) 590-9526"," Kenley.Rubio@gmail.com"]
["Miranda","Miranda, Rolando & Madalynn"," (965) 893-4118"," Rolando.Miranda@gmail.com","126 Howard Street Provo, UT 84604","Miranda, Rolando"," (965) 893-4118"," Rolando.Miranda@gmail.com","Miranda, Madalynn"," (965) 893-4118"," Madalynn.Miranda@gmail.com"]
["Zuniga","Zuniga, Tristin & Dania"," (530) 436-2544"," Tristin.Zuniga@gmail.com","676 Cedar Street Provo, UT 84604","Zuniga, Tristin"," (530) 436-2544"," Tristin.Zuniga@gmail.com","Zuniga, Dania"," (530) 436-2544"," Dania.Zuniga@gmail.com"]
["Ashley","Ashley, Kaiden & Joslyn"," (331) 859-7566"," Kaiden.Ashley@gmail.com","569 Prospect Avenue Provo, UT 84604","Ashley, Kaiden"," (331) 859-7566"," Kaiden.Ashley@gmail.com","Ashley, Joslyn"," (331) 859-7566"," Joslyn.Ashley@gmail.com"]
["Gentry","Gentry, Jonas & Marlene"," (651) 730-2956"," Jonas.Gentry@gmail.com","384 Rosewood Drive Provo, UT 84604","Gentry, Jonas"," (651) 730-2956"," Jonas.Gentry@gmail.com","Gentry, Marlene"," (651) 730-2956"," Marlene.Gentry@gmail.com"]
["Beltran","Beltran, Hugh & Molly"," (496) 708-7678"," Hugh.Beltran@gmail.com","226 1st Avenue Provo, UT 84604","Beltran, Hugh"," (496) 708-7678"," Hugh.Beltran@gmail.com","Beltran, Molly"," (496) 708-7678"," Molly.Beltran@gmail.com"]
["Berger","Berger, Diego & Kallie"," (99) 879-2792"," Diego.Berger@gmail.com","706 South Street Provo, UT 84604","Berger, Diego"," (99) 879-2792"," Diego.Berger@gmail.com","Berger, Kallie"," (99) 879-2792"," Kallie.Berger@gmail.com"]
["Nelson","Nelson, Cortez & Kenna"," (26) 367-1958"," Cortez.Nelson@gmail.com","667 Pine Street Provo, UT 84604","Nelson, Cortez"," (26) 367-1958"," Cortez.Nelson@gmail.com","Nelson, Kenna"," (26) 367-1958"," Kenna.Nelson@gmail.com"]
["Waters","Waters, Xavier & Delaney"," (348) 402-9779"," Xavier.Waters@gmail.com","95 Westminster Drive Provo, UT 84604","Waters, Xavier"," (348) 402-9779"," Xavier.Waters@gmail.com","Waters, Delaney"," (348) 402-9779"," Delaney.Waters@gmail.com"]
["Hamilton","Hamilton, Mohamed & Kali"," (476) 347-9736"," Mohamed.Hamilton@gmail.com","458 Church Road Provo, UT 84604","Hamilton, Mohamed"," (476) 347-9736"," Mohamed.Hamilton@gmail.com","Hamilton, Kali"," (476) 347-9736"," Kali.Hamilton@gmail.com"]
["Bowen","Bowen, Bryson & Alessandra"," (737) 251-6404"," Bryson.Bowen@gmail.com","536 Columbia Street Provo, UT 84604","Bowen, Bryson"," (737) 251-6404"," Bryson.Bowen@gmail.com","Bowen, Alessandra"," (737) 251-6404"," Alessandra.Bowen@gmail.com"]
["Ramos","Ramos, Vaughn & Elle"," (356) 491-2010"," Vaughn.Ramos@gmail.com","497 Schoolhouse Lane Provo, UT 84604","Ramos, Vaughn"," (356) 491-2010"," Vaughn.Ramos@gmail.com","Ramos, Elle"," (356) 491-2010"," Elle.Ramos@gmail.com"]
["Reese","Reese, Emmanuel & Yasmine"," (962) 204-5823"," Emmanuel.Reese@gmail.com","271 Dogwood Drive Provo, UT 84604","Reese, Emmanuel"," (962) 204-5823"," Emmanuel.Reese@gmail.com","Reese, Yasmine"," (962) 204-5823"," Yasmine.Reese@gmail.com"]
["Thompson","Thompson, Jackson & Karla"," (39) 148-9811"," Jackson.Thompson@gmail.com","400 Country Club Drive Provo, UT 84604","Thompson, Jackson"," (39) 148-9811"," Jackson.Thompson@gmail.com","Thompson, Karla"," (39) 148-9811"," Karla.Thompson@gmail.com"]
["Conner","Conner, Casey & Sanai"," (313) 330-7140"," Casey.Conner@gmail.com","857 Catherine Street Provo, UT 84604","Conner, Casey"," (313) 330-7140"," Casey.Conner@gmail.com","Conner, Sanai"," (313) 330-7140"," Sanai.Conner@gmail.com"]
["Davila","Davila, Connor & Juliette"," (787) 579-8685"," Connor.Davila@gmail.com","687 Beechwood Drive Provo, UT 84604","Davila, Connor"," (787) 579-8685"," Connor.Davila@gmail.com","Davila, Juliette"," (787) 579-8685"," Juliette.Davila@gmail.com"]
["Baxter","Baxter, Dane & Kate"," (665) 447-6630"," Dane.Baxter@gmail.com","266 Summer Street Provo, UT 84604","Baxter, Dane"," (665) 447-6630"," Dane.Baxter@gmail.com","Baxter, Kate"," (665) 447-6630"," Kate.Baxter@gmail.com"]
["Marquez","Marquez, Valentin & Emilie"," (974) 992-2433"," Valentin.Marquez@gmail.com","954 Virginia Street Provo, UT 84604","Marquez, Valentin"," (974) 992-2433"," Valentin.Marquez@gmail.com","Marquez, Emilie"," (974) 992-2433"," Emilie.Marquez@gmail.com"]
["Wise","Wise, Harold & Maritza"," (321) 273-4534"," Harold.Wise@gmail.com","79 Route 30 Provo, UT 84604","Wise, Harold"," (321) 273-4534"," Harold.Wise@gmail.com","Wise, Maritza"," (321) 273-4534"," Maritza.Wise@gmail.com"]
["Price","Price, Jerry & Charlie"," (819) 768-4255"," Jerry.Price@gmail.com","776 Center Street Provo, UT 84604","Price, Jerry"," (819) 768-4255"," Jerry.Price@gmail.com","Price, Charlie"," (819) 768-4255"," Charlie.Price@gmail.com"]
["Sexton","Sexton, Elijah & Tamia"," (981) 121-7558"," Elijah.Sexton@gmail.com","135 Cardinal Drive Provo, UT 84604","Sexton, Elijah"," (981) 121-7558"," Elijah.Sexton@gmail.com","Sexton, Tamia"," (981) 121-7558"," Tamia.Sexton@gmail.com"]
["Wheeler","Wheeler, Beau & Avah"," (324) 989-2774"," Beau.Wheeler@gmail.com","246 Madison Avenue Provo, UT 84604","Wheeler, Beau"," (324) 989-2774"," Beau.Wheeler@gmail.com","Wheeler, Avah"," (324) 989-2774"," Avah.Wheeler@gmail.com"]
["Finley","Finley, Camren & Maci"," (910) 781-40"," Camren.Finley@gmail.com","39 Fieldstone Drive Provo, UT 84604","Finley, Camren"," (910) 781-40"," Camren.Finley@gmail.com","Finley, Maci"," (910) 781-40"," Maci.Finley@gmail.com"]
["Rosales","Rosales, Jerimiah & Shaylee"," (453) 3-5693"," Jerimiah.Rosales@gmail.com","382 Old York Road Provo, UT 84604","Rosales, Jerimiah"," (453) 3-5693"," Jerimiah.Rosales@gmail.com","Rosales, Shaylee"," (453) 3-5693"," Shaylee.Rosales@gmail.com"]
["Solomon","Solomon, Mason & Kathleen"," (491) 166-2159"," Mason.Solomon@gmail.com","630 Route 5 Provo, UT 84604","Solomon, Mason"," (491) 166-2159"," Mason.Solomon@gmail.com","Solomon, Kathleen"," (491) 166-2159"," Kathleen.Solomon@gmail.com"]
["Landry","Landry, Scott & Mattie"," (676) 649-2479"," Scott.Landry@gmail.com","974 Canterbury Court Provo, UT 84604","Landry, Scott"," (676) 649-2479"," Scott.Landry@gmail.com","Landry, Mattie"," (676) 649-2479"," Mattie.Landry@gmail.com"]
["Sanders","Sanders, Logan & Shayna"," (972) 268-4842"," Logan.Sanders@gmail.com","964 Surrey Lane Provo, UT 84604","Sanders, Logan"," (972) 268-4842"," Logan.Sanders@gmail.com","Sanders, Shayna"," (972) 268-4842"," Shayna.Sanders@gmail.com"]
["Wilkerson","Wilkerson, Jaiden & Tianna"," (946) 825-9891"," Jaiden.Wilkerson@gmail.com","510 Sherman Street Provo, UT 84604","Wilkerson, Jaiden"," (946) 825-9891"," Jaiden.Wilkerson@gmail.com","Wilkerson, Tianna"," (946) 825-9891"," Tianna.Wilkerson@gmail.com"]
["Estrada","Estrada, Ralph & Jocelynn"," (723) 91-912"," Ralph.Estrada@gmail.com","177 Broadway Provo, UT 84604","Estrada, Ralph"," (723) 91-912"," Ralph.Estrada@gmail.com","Estrada, Jocelynn"," (723) 91-912"," Jocelynn.Estrada@gmail.com"]
["Melendez","Melendez, Johnathon & Neveah"," (585) 248-6937"," Johnathon.Melendez@gmail.com","251 Belmont Avenue Provo, UT 84604","Melendez, Johnathon"," (585) 248-6937"," Johnathon.Melendez@gmail.com","Melendez, Neveah"," (585) 248-6937"," Neveah.Melendez@gmail.com"]
["Graves","Graves, Jared & Anaya"," (651) 94-2009"," Jared.Graves@gmail.com","306 Cleveland Avenue Provo, UT 84604","Graves, Jared"," (651) 94-2009"," Jared.Graves@gmail.com","Graves, Anaya"," (651) 94-2009"," Anaya.Graves@gmail.com"]
["Randall","Randall, Matthew & Ciara"," (734) 396-3273"," Matthew.Randall@gmail.com","112 York Street Provo, UT 84604","Randall, Matthew"," (734) 396-3273"," Matthew.Randall@gmail.com","Randall, Ciara"," (734) 396-3273"," Ciara.Randall@gmail.com"]
["Franklin","Franklin, Tate & Dayanara"," (911) 693-209"," Tate.Franklin@gmail.com","566 Church Street North Provo, UT 84604","Franklin, Tate"," (911) 693-209"," Tate.Franklin@gmail.com","Franklin, Dayanara"," (911) 693-209"," Dayanara.Franklin@gmail.com"]
["Carter","Carter, Sergio & Stephany"," (764) 338-5147"," Sergio.Carter@gmail.com","842 Locust Lane Provo, UT 84604","Carter, Sergio"," (764) 338-5147"," Sergio.Carter@gmail.com","Carter, Stephany"," (764) 338-5147"," Stephany.Carter@gmail.com"]
["Douglas","Douglas, Case & Cloe"," (459) 586-2148"," Case.Douglas@gmail.com","473 Cross Street Provo, UT 84604","Douglas, Case"," (459) 586-2148"," Case.Douglas@gmail.com","Douglas, Cloe"," (459) 586-2148"," Cloe.Douglas@gmail.com"]
["Merritt","Merritt, Eli & Cecilia"," (320) 22-806"," Eli.Merritt@gmail.com","552 3rd Avenue Provo, UT 84604","Merritt, Eli"," (320) 22-806"," Eli.Merritt@gmail.com","Merritt, Cecilia"," (320) 22-806"," Cecilia.Merritt@gmail.com"]
["Doyle","Doyle, Rayan & Makaila"," (834) 341-3095"," Rayan.Doyle@gmail.com","257 Hanover Court Provo, UT 84604","Doyle, Rayan"," (834) 341-3095"," Rayan.Doyle@gmail.com","Doyle, Makaila"," (834) 341-3095"," Makaila.Doyle@gmail.com"]
["Wang","Wang, Bradley & Gia"," (289) 745-6966"," Bradley.Wang@gmail.com","489 Lexington Court Provo, UT 84604","Wang, Bradley"," (289) 745-6966"," Bradley.Wang@gmail.com","Wang, Gia"," (289) 745-6966"," Gia.Wang@gmail.com"]
["Dodson","Dodson, Zachariah & Malia"," (445) 640-7764"," Zachariah.Dodson@gmail.com","292 Railroad Avenue Provo, UT 84604","Dodson, Zachariah"," (445) 640-7764"," Zachariah.Dodson@gmail.com","Dodson, Malia"," (445) 640-7764"," Malia.Dodson@gmail.com"]
["Mcgee","Mcgee, Rodrigo & Hayden"," (227) 487-364"," Rodrigo.Mcgee@gmail.com","394 Locust Street Provo, UT 84604","Mcgee, Rodrigo"," (227) 487-364"," Rodrigo.Mcgee@gmail.com","Mcgee, Hayden"," (227) 487-364"," Hayden.Mcgee@gmail.com"]
["Rodriguez","Rodriguez, Braden & Ann"," (229) 72-3995"," Braden.Rodriguez@gmail.com","943 Bay Street Provo, UT 84604","Rodriguez, Braden"," (229) 72-3995"," Braden.Rodriguez@gmail.com","Rodriguez, Ann"," (229) 72-3995"," Ann.Rodriguez@gmail.com"]
["Dickerson","Dickerson, Aaron & Stella"," (481) 409-2906"," Aaron.Dickerson@gmail.com","715 Edgewood Road Provo, UT 84604","Dickerson, Aaron"," (481) 409-2906"," Aaron.Dickerson@gmail.com","Dickerson, Stella"," (481) 409-2906"," Stella.Dickerson@gmail.com"]
["Garrett","Garrett, Konner & Chasity"," (767) 239-3310"," Konner.Garrett@gmail.com","103 Clay Street Provo, UT 84604","Garrett, Konner"," (767) 239-3310"," Konner.Garrett@gmail.com","Garrett, Chasity"," (767) 239-3310"," Chasity.Garrett@gmail.com"]
["Mckenzie","Mckenzie, Chaz & Harper"," (565) 482-9648"," Chaz.Mckenzie@gmail.com","494 Bridle Lane Provo, UT 84604","Mckenzie, Chaz"," (565) 482-9648"," Chaz.Mckenzie@gmail.com","Mckenzie, Harper"," (565) 482-9648"," Harper.Mckenzie@gmail.com"]
["Jensen","Jensen, Kian & Emily"," (256) 208-3740"," Kian.Jensen@gmail.com","130 Lincoln Avenue Provo, UT 84604","Jensen, Kian"," (256) 208-3740"," Kian.Jensen@gmail.com","Jensen, Emily"," (256) 208-3740"," Emily.Jensen@gmail.com"]
["Cline","Cline, Ian & Lydia"," (283) 562-859"," Ian.Cline@gmail.com","646 Cottage Street Provo, UT 84604","Cline, Ian"," (283) 562-859"," Ian.Cline@gmail.com","Cline, Lydia"," (283) 562-859"," Lydia.Cline@gmail.com"]
["Chan","Chan, Pablo & Abigayle"," (498) 900-593"," Pablo.Chan@gmail.com","827 Chestnut Avenue Provo, UT 84604","Chan, Pablo"," (498) 900-593"," Pablo.Chan@gmail.com","Chan, Abigayle"," (498) 900-593"," Abigayle.Chan@gmail.com"]
["Yoder","Yoder, Yosef & Kylee"," (443) 616-2962"," Yosef.Yoder@gmail.com","265 Rose Street Provo, UT 84604","Yoder, Yosef"," (443) 616-2962"," Yosef.Yoder@gmail.com","Yoder, Kylee"," (443) 616-2962"," Kylee.Yoder@gmail.com"]
["Proctor","Proctor, Trenton & Hailey"," (75) 943-7896"," Trenton.Proctor@gmail.com","140 Garfield Avenue Provo, UT 84604","Proctor, Trenton"," (75) 943-7896"," Trenton.Proctor@gmail.com","Proctor, Hailey"," (75) 943-7896"," Hailey.Proctor@gmail.com"]
["Bass","Bass, Kylan & Mikaela"," (489) 443-7640"," Kylan.Bass@gmail.com","598 Maple Avenue Provo, UT 84604","Bass, Kylan"," (489) 443-7640"," Kylan.Bass@gmail.com","Bass, Mikaela"," (489) 443-7640"," Mikaela.Bass@gmail.com"]
["Hays","Hays, Addison & Erika"," (40) 668-4985"," Addison.Hays@gmail.com","269 Cherry Street Provo, UT 84604","Hays, Addison"," (40) 668-4985"," Addison.Hays@gmail.com","Hays, Erika"," (40) 668-4985"," Erika.Hays@gmail.com"]
["Cunningham","Cunningham, Sullivan & Yareli"," (933) 458-3618"," Sullivan.Cunningham@gmail.com","687 River Road Provo, UT 84604","Cunningham, Sullivan"," (933) 458-3618"," Sullivan.Cunningham@gmail.com","Cunningham, Yareli"," (933) 458-3618"," Yareli.Cunningham@gmail.com"]
["Fowler","Fowler, Rhys & Myah"," (663) 47-7246"," Rhys.Fowler@gmail.com","438 Hillcrest Drive Provo, UT 84604","Fowler, Rhys"," (663) 47-7246"," Rhys.Fowler@gmail.com","Fowler, Myah"," (663) 47-7246"," Myah.Fowler@gmail.com"]
["Hanson","Hanson, Omari & Melina"," (637) 863-7662"," Omari.Hanson@gmail.com","230 Holly Drive Provo, UT 84604","Hanson, Omari"," (637) 863-7662"," Omari.Hanson@gmail.com","Hanson, Melina"," (637) 863-7662"," Melina.Hanson@gmail.com"]
["Lozano","Lozano, Maurice & Annabella"," (499) 860-1317"," Maurice.Lozano@gmail.com","645 2nd Street West Provo, UT 84604","Lozano, Maurice"," (499) 860-1317"," Maurice.Lozano@gmail.com","Lozano, Annabella"," (499) 860-1317"," Annabella.Lozano@gmail.com"]
["Lowe","Lowe, Ariel & Victoria"," (379) 159-4654"," Ariel.Lowe@gmail.com","893 East Avenue Provo, UT 84604","Lowe, Ariel"," (379) 159-4654"," Ariel.Lowe@gmail.com","Lowe, Victoria"," (379) 159-4654"," Victoria.Lowe@gmail.com"]
["Barrett","Barrett, Harry & Evelin"," (240) 265-9799"," Harry.Barrett@gmail.com","915 Magnolia Court Provo, UT 84604","Barrett, Harry"," (240) 265-9799"," Harry.Barrett@gmail.com","Barrett, Evelin"," (240) 265-9799"," Evelin.Barrett@gmail.com"]
["Park","Park, Donovan & Cheyenne"," (543) 61-192"," Donovan.Park@gmail.com","293 Franklin Street Provo, UT 84604","Park, Donovan"," (543) 61-192"," Donovan.Park@gmail.com","Park, Cheyenne"," (543) 61-192"," Cheyenne.Park@gmail.com"]
["Glenn","Glenn, Lamar & Madeline"," (457) 452-5374"," Lamar.Glenn@gmail.com","815 Ann Street Provo, UT 84604","Glenn, Lamar"," (457) 452-5374"," Lamar.Glenn@gmail.com","Glenn, Madeline"," (457) 452-5374"," Madeline.Glenn@gmail.com"]
["Knapp","Knapp, Andre & Savanna"," (933) 514-8303"," Andre.Knapp@gmail.com","963 Summit Avenue Provo, UT 84604","Knapp, Andre"," (933) 514-8303"," Andre.Knapp@gmail.com","Knapp, Savanna"," (933) 514-8303"," Savanna.Knapp@gmail.com"]

{"sheet":"Report","index":2,"n_rows":27,"n_cols":17,"rows_kept":27,"cut":false,"hidden":false,"merged":[]}
["Companionship","Group","Family","Jan","Feb","Mar","Apr","May","Jun","Jul","Aug","Sept","Oct","Nov","Dec","Percent","Notes"]
["Mcdowell, Joel & Morton, Alijah","District 1","Whitaker, Makai & Alondra",null,null,null,null,null,null,null,null,null,null,null,null,{"$f":"COUNTIF(D2:O2,\"x\")/12","v":0}]
["Mcdowell, Joel & Morton, Alijah","District 1","Soto, Wesley & Yazmin",null,"x",null,null,null,null,null,null,null,null,null,null,{"$f":"COUNTIF(D3:O3,\"x\")/12","v":8.3333333333333329E-2}]
["Mcdowell, Joel & Morton, Alijah","District 1","Fletcher, Leonard & Anika",null,"x",null,null,null,null,null,null,null,null,null,null,{"$f":"COUNTIF(D4:O4,\"x\")/12","v":8.3333333333333329E-2}]
["Morgan, Gilbert & Barber, Edward","District 1","Mcdowell, Joel & Janelle",null,"x","x","x","x",null,null,null,null,null,null,null,{"$f":"COUNTIF(D5:O5,\"x\")/12","v":0.33333333333333331}]
["Morgan, Gilbert & Barber, Edward","District 1","Rocha, Terry & Kaley",null,null,null,null,null,null,null,null,null,null,null,null,{"$f":"COUNTIF(D6:O6,\"x\")/12","v":0}]
["Morgan, Gilbert & Barber, Edward","District 1","Daniels, Tobias & Celia",null,null,null,"x",null,null,null,null,null,null,null,null,{"$f":"COUNTIF(D7:O7,\"x\")/12","v":8.3333333333333329E-2}]
["Steele, Shane & Nelson, Cortez","District 1","Espinoza, Ahmad & Kassandra",null,null,null,null,"x",null,null,null,null,null,null,null,{"$f":"COUNTIF(D8:O8,\"x\")/12","v":8.3333333333333329E-2}]
["Steele, Shane & Nelson, Cortez","District 1","Vincent, Kody & Jayleen",null,null,null,null,null,null,null,null,null,null,null,null,{"$f":"COUNTIF(D9:O9,\"x\")/12","v":0}]
["Steele, Shane & Nelson, Cortez","District 1","Finley, Camren & Maci",null,null,null,"x",null,"x",null,null,null,null,null,null,{"$f":"COUNTIF(D10:O10,\"x\")/12","v":0.16666666666666666}]
["Steele, Shane & Nelson, Cortez","District 1","Dodson, Zachariah & Malia",null,null,null,null,null,"x",null,null,null,null,null,null,{"$f":"COUNTIF(D11:O11,\"x\")/12","v":8.3333333333333329E-2}]
["Davila, Connor & Lozano, Maurice","District 1","Vega, Jensen & Callie",null,"x","x","x","x","x","x","x","x","x",null,null,{"$f":"COUNTIF(D12:O12,\"x\")/12","v":0.75}]
["Davila, Connor & Lozano, Maurice","District 1","Cline, Ian & Lydia",null,null,null,null,null,null,null,null,null,null,null,null,{"$f":"COUNTIF(D13:O13,\"x\")/12","v":0}]
["Davila, Connor & Lozano, Maurice","District 1","Proctor, Trenton & Hailey",null,null,null,null,null,"x",null,null,null,null,null,null,{"$f":"COUNTIF(D14:O14,\"x\")/12","v":8.3333333333333329E-2}]
["Davila, Connor & Lozano, Maurice","District 1","Fowler, Rhys & Myah",null,null,"x",null,"x",null,null,null,null,null,"x",null,{"$f":"COUNTIF(D15:O15,\"x\")/12","v":0.25}]
["Rocha, Terry & Short, Jonathon","District 2","Glenn, Lamar & Madeline",null,null,null,null,null,null,null,null,null,null,null,null,{"$f":"COUNTIF(D16:O16,\"x\")/12","v":0}]
["Rocha, Terry & Short, Jonathon","District 2","Knapp, Andre & Savanna",null,null,null,null,null,null,null,null,null,null,null,null,{"$f":"COUNTIF(D17:O17,\"x\")/12","v":0}]
["Randall, Matthew & Daniels, Tobias","District 2","Morton, Alijah & Lara",null,null,null,null,null,null,null,null,"x",null,null,null,{"$f":"COUNTIF(D18:O18,\"x\")/12","v":8.3333333333333329E-2}]
["Randall, Matthew & Daniels, Tobias","District 2","Steele, Shane & Alannah",null,null,null,null,null,"x",null,null,null,null,null,null,{"$f":"COUNTIF(D19:O19,\"x\")/12","v":8.3333333333333329E-2}]
["Randall, Matthew & Daniels, Tobias","District 2","Short, Jonathon & Presley",null,null,null,"x",null,null,null,null,null,null,null,null,{"$f":"COUNTIF(D20:O20,\"x\")/12","v":8.3333333333333329E-2}]
["Randall, Matthew & Daniels, Tobias","District 2","Cervantes, Antonio & Samantha",null,"x",null,null,null,null,null,null,null,null,null,null,{"$f":"COUNTIF(D21:O21,\"x\")/12","v":8.3333333333333329E-2}]
["Flores, Morgan & Fields, Abel","District 3","Brennan, Rodolfo & Halle",null,null,null,null,null,null,null,null,null,null,null,null,{"$f":"COUNTIF(D22:O22,\"x\")/12","v":0}]
["Flores, Morgan & Fields, Abel","District 3","Weeks, Enrique & Elliana",null,null,"x",null,"x",null,"x",null,"x","x","x","x",{"$f":"COUNTIF(D23:O23,\"x\")/12","v":0.58333333333333337}]
["Flores, Morgan & Fields, Abel","District 3","Frazier, Cannon & Mckayla",null,null,null,null,null,null,null,null,null,null,null,null,{"$f":"COUNTIF(D24:O24,\"x\")/12","v":0}]
["Barrett, Harry & Cunningham, Sullivan","District 3","Steele, Shane & Alannah",null,null,null,null,null,null,null,null,null,null,null,null,{"$f":"COUNTIF(D25:O25,\"x\")/12","v":0}]
["Barrett, Harry & Cunningham, Sullivan","District 3","Fletcher, Leonard & Anika",null,null,null,null,null,null,null,null,null,null,null,null,{"$f":"COUNTIF(D26:O26,\"x\")/12","v":0}]
["Barrett, Harry & Cunningham, Sullivan","District 3","Cervantes, Antonio & Samantha",null,null,null,null,null,null,null,null,null,null,null,null,{"$f":"COUNTIF(D27:O27,\"x\")/12","v":0}]

{"sheet":"Companionships","index":3,"n_rows":9,"n_cols":7,"rows_kept":9,"cut":false,"hidden":false,"merged":[]}
["Companion 1","Companion 2","Group","Family"]
["Mcdowell, Joel","Morton, Alijah","District 1","Whitaker, Makai & Alondra","Soto, Wesley & Yazmin","Fletcher, Leonard & Anika"]
["Morgan, Gilbert","Barber, Edward","District 1","Mcdowell, Joel & Janelle","Rocha, Terry & Kaley","Daniels, Tobias & Celia"]
["Steele, Shane","Nelson, Cortez","District 1","Espinoza, Ahmad & Kassandra","Vincent, Kody & Jayleen","Finley, Camren & Maci","Dodson, Zachariah & Malia"]
["Rocha, Terry","Short, Jonathon","District 2","Glenn, Lamar & Madeline","Knapp, Andre & Savanna"]
["Davila, Connor","Lozano, Maurice","District 1","Vega, Jensen & Callie","Cline, Ian & Lydia","Proctor, Trenton & Hailey","Fowler, Rhys & Myah"]
["Flores, Morgan","Fields, Abel","District 3","Brennan, Rodolfo & Halle","Weeks, Enrique & Elliana","Frazier, Cannon & Mckayla"]
["Barrett, Harry","Cunningham, Sullivan","District 3","Steele, Shane & Alannah","Fletcher, Leonard & Anika","Cervantes, Antonio & Samantha"]
["Randall, Matthew","Daniels, Tobias","District 2","Morton, Alijah & Lara","Steele, Shane & Alannah","Short, Jonathon & Presley","Cervantes, Antonio & Samantha"]

{"sheet":"Google Template","index":4,"n_rows":1,"n_cols":44,"rows_kept":1,"cut":false,"hidden":false,"merged":[]}
["Name","Given Name","Additional Name","Family Name","Yomi Name","Given Name Yomi","Additional Name Yomi","Family Name Yomi","Name Prefix","Name Suffix","Initials","Nickname","Short Name","Maiden Name","Birthday","Gender","Location","Billing Information","Directory Server","Mileage","Occupation","Hobby","Sensitivity","Priority","Subject","Notes","Group Membership","E-mail 1 - Type","E-mail 1 - Value","E-mail 2 - Type","E-mail 2 - Value","Phone 1 - Type","Phone 1 - Value","Phone 2 - Type","Phone 2 - Value","Address 1 - Type","Address 1 - Formatted","Address 1 - Street","Address 1 - City","Address 1 - PO Box","Address 1 - Region","Address 1 - Postal Code","Address 1 - Country","Address 1 - Extended Address"]

{"sheet":"Group Names","index":5,"n_rows":6,"n_cols":1,"rows_kept":6,"cut":false,"hidden":false,"merged":[]}
["Group Names"]
["District 1"]
["District 2"]
["District 3"]
["test"]
["District 4"]

{"sheet":"District 1","index":6,"n_rows":17,"n_cols":7,"rows_kept":17,"cut":false,"hidden":false,"merged":[]}
["Mcdowell, Joel"]
["Morton, Alijah"," (362) 59-5551"," (362) 59-5551"," Alijah.Morton@gmail.com"," Alijah.Morton@gmail.com","545 Clark Street Provo, UT 84604","Morton, Alijah & Lara"]
["Morgan, Gilbert"," (55) 584-8760"," (55) 584-8760"," Gilbert.Morgan@gmail.com"," Gilbert.Morgan@gmail.com","614 Carriage Drive Provo, UT 84604","Morgan, Gilbert & Abigail"]
["Frazier, Cannon"," (736) 670-4588"," (736) 670-4588"," Cannon.Frazier@gmail.com"," Cannon.Frazier@gmail.com","363 Sunset Drive Provo, UT 84604","Frazier, Cannon & Mckayla"]
["Vincent, Kody"," (268) 401-3234"," (268) 401-3234"," Kody.Vincent@gmail.com"," Kody.Vincent@gmail.com","75 3rd Street East Provo, UT 84604","Vincent, Kody & Jayleen"]
["Steele, Shane"," (780) 161-653"," (780) 161-653"," Shane.Steele@gmail.com"," Shane.Steele@gmail.com","819 Academy Street Provo, UT 84604","Steele, Shane & Alannah"]
["Nelson, Cortez"," (26) 367-1958"," (26) 367-1958"," Cortez.Nelson@gmail.com"," Cortez.Nelson@gmail.com","667 Pine Street Provo, UT 84604","Nelson, Cortez & Kenna"]
["Ramos, Vaughn"," (356) 491-2010"," (356) 491-2010"," Vaughn.Ramos@gmail.com"," Vaughn.Ramos@gmail.com","497 Schoolhouse Lane Provo, UT 84604","Ramos, Vaughn & Elle"]
["Davila, Connor"," (787) 579-8685"," (787) 579-8685"," Connor.Davila@gmail.com"," Connor.Davila@gmail.com","687 Beechwood Drive Provo, UT 84604","Davila, Connor & Juliette"]
["Finley, Camren"," (910) 781-40"," (910) 781-40"," Camren.Finley@gmail.com"," Camren.Finley@gmail.com","39 Fieldstone Drive Provo, UT 84604","Finley, Camren & Maci"]
["Landry, Scott"," (676) 649-2479"," (676) 649-2479"," Scott.Landry@gmail.com"," Scott.Landry@gmail.com","974 Canterbury Court Provo, UT 84604","Landry, Scott & Mattie"]
["Randall, Matthew"," (734) 396-3273"," (734) 396-3273"," Matthew.Randall@gmail.com"," Matthew.Randall@gmail.com","112 York Street Provo, UT 84604","Randall, Matthew & Ciara"]
["Douglas, Case"," (459) 586-2148"," (459) 586-2148"," Case.Douglas@gmail.com"," Case.Douglas@gmail.com","473 Cross Street Provo, UT 84604","Douglas, Case & Cloe"]
["Dodson, Zachariah"," (445) 640-7764"," (445) 640-7764"," Zachariah.Dodson@gmail.com"," Zachariah.Dodson@gmail.com","292 Railroad Avenue Provo, UT 84604","Dodson, Zachariah & Malia"]
["Dickerson, Aaron"," (481) 409-2906"," (481) 409-2906"," Aaron.Dickerson@gmail.com"," Aaron.Dickerson@gmail.com","715 Edgewood Road Provo, UT 84604","Dickerson, Aaron & Stella"]
["Cline, Ian"," (283) 562-859"," (283) 562-859"," Ian.Cline@gmail.com"," Ian.Cline@gmail.com","646 Cottage Street Provo, UT 84604","Cline, Ian & Lydia"]
["Lozano, Maurice"," (499) 860-1317"," (499) 860-1317"," Maurice.Lozano@gmail.com"," Maurice.Lozano@gmail.com","645 2nd Street West Provo, UT 84604","Lozano, Maurice & Annabella"]

{"sheet":"District 2","index":7,"n_rows":13,"n_cols":7,"rows_kept":13,"cut":false,"hidden":false,"merged":[]}
["Head of Household","Primary","Home","Primary","Home","Address","Couple"]
["Mcdowell, Joel"," (467) 311-9457"," (467) 311-9457"," Joel.Mcdowell@gmail.com"," Joel.Mcdowell@gmail.com","26 Harrison Avenue Provo, UT 84604","Mcdowell, Joel & Janelle"]
["Weeks, Enrique"," (363) 285-8498"," (363) 285-8498"," Enrique.Weeks@gmail.com"," Enrique.Weeks@gmail.com","309 Ivy Court Provo, UT 84604","Weeks, Enrique & Elliana"]
["Rocha, Terry"," (740) 722-3151"," (740) 722-3151"," Terry.Rocha@gmail.com"," Terry.Rocha@gmail.com","557 5th Street Provo, UT 84604","Rocha, Terry & Kaley"]
["Stevens, Dominik"," (61) 575-3309"," (61) 575-3309"," Dominik.Stevens@gmail.com"," Dominik.Stevens@gmail.com","836 Hartford Road Provo, UT 84604","Stevens, Dominik & Katie"]
["Daniels, Tobias"," (617) 354-2955"," (617) 354-2955"," Tobias.Daniels@gmail.com"," Tobias.Daniels@gmail.com","104 Sheffield Drive Provo, UT 84604","Daniels, Tobias & Celia"]
["Short, Jonathon"," (729) 835-7308"," (729) 835-7308"," Jonathon.Short@gmail.com"," Jonathon.Short@gmail.com","236 Windsor Drive Provo, UT 84604","Short, Jonathon & Presley"]
["Melendez, Johnathon"," (585) 248-6937"," (585) 248-6937"," Johnathon.Melendez@gmail.com"," Johnathon.Melendez@gmail.com","251 Belmont Avenue Provo, UT 84604","Melendez, Johnathon & Neveah"]
["Randall, Matthew"," (734) 396-3273"," (734) 396-3273"," Matthew.Randall@gmail.com"," Matthew.Randall@gmail.com","112 York Street Provo, UT 84604","Randall, Matthew & Ciara"]
["Carter, Sergio"," (764) 338-5147"," (764) 338-5147"," Sergio.Carter@gmail.com"," Sergio.Carter@gmail.com","842 Locust Lane Provo, UT 84604","Carter, Sergio & Stephany"]
["Doyle, Rayan"," (834) 341-3095"," (834) 341-3095"," Rayan.Doyle@gmail.com"," Rayan.Doyle@gmail.com","257 Hanover Court Provo, UT 84604","Doyle, Rayan & Makaila"]
["Dodson, Zachariah"," (445) 640-7764"," (445) 640-7764"," Zachariah.Dodson@gmail.com"," Zachariah.Dodson@gmail.com","292 Railroad Avenue Provo, UT 84604","Dodson, Zachariah & Malia"]
["Jensen, Kian"," (256) 208-3740"," (256) 208-3740"," Kian.Jensen@gmail.com"," Kian.Jensen@gmail.com","130 Lincoln Avenue Provo, UT 84604","Jensen, Kian & Emily"]

{"sheet":"District 3","index":8,"n_rows":19,"n_cols":7,"rows_kept":19,"cut":false,"hidden":false,"merged":[]}
["Head of Household","Primary","Home","Primary","Home","Address","Couple"]
["Flores, Morgan"," (298) 910-2217"," (298) 910-2217"," Morgan.Flores@gmail.com"," Morgan.Flores@gmail.com","150 Chestnut Street Provo, UT 84604","Flores, Morgan & Giuliana"]
["Fields, Abel"," (60) 566-8240"," (60) 566-8240"," Abel.Fields@gmail.com"," Abel.Fields@gmail.com","149 Valley View Road Provo, UT 84604","Fields, Abel & Jazmyn"]
["Mcguire, Brennen"," (934) 469-1248"," (934) 469-1248"," Brennen.Mcguire@gmail.com"," Brennen.Mcguire@gmail.com","4 Myrtle Street Provo, UT 84604","Mcguire, Brennen & Kristin"]
["Spence, Soren"," (621) 445-5951"," (621) 445-5951"," Soren.Spence@gmail.com"," Soren.Spence@gmail.com","389 Fairview Avenue Provo, UT 84604","Spence, Soren & Rosa"]
["Mason, Felix"," (642) 485-7602"," (642) 485-7602"," Felix.Mason@gmail.com"," Felix.Mason@gmail.com","23 6th Avenue Provo, UT 84604","Mason, Felix & Giana"]
["Ayala, Tripp"," (430) 472-7270"," (430) 472-7270"," Tripp.Ayala@gmail.com"," Tripp.Ayala@gmail.com","694 Pin Oak Drive Provo, UT 84604","Ayala, Tripp & Maya"]
["Mccullough, Marcel"," (359) 430-2653"," (359) 430-2653"," Marcel.Mccullough@gmail.com"," Marcel.Mccullough@gmail.com","906 Lilac Lane Provo, UT 84604","Mccullough, Marcel & Sara"]
["Kent, Isai"," (321) 846-6807"," (321) 846-6807"," Isai.Kent@gmail.com"," Isai.Kent@gmail.com","208 Virginia Avenue Provo, UT 84604","Kent, Isai & Pamela"]
["Rubio, Callum"," (369) 590-9526"," (369) 590-9526"," Callum.Rubio@gmail.com"," Callum.Rubio@gmail.com","10 Bayberry Drive Provo, UT 84604","Rubio, Callum & Kenley"]
["Gentry, Jonas"," (651) 730-2956"," (651) 730-2956"," Jonas.Gentry@gmail.com"," Jonas.Gentry@gmail.com","384 Rosewood Drive Provo, UT 84604","Gentry, Jonas & Marlene"]
["Merritt, Eli"," (320) 22-806"," (320) 22-806"," Eli.Merritt@gmail.com"," Eli.Merritt@gmail.com","552 3rd Avenue Provo, UT 84604","Merritt, Eli & Cecilia"]
["Dodson, Zachariah"," (445) 640-7764"," (445) 640-7764"," Zachariah.Dodson@gmail.com"," Zachariah.Dodson@gmail.com","292 Railroad Avenue Provo, UT 84604","Dodson, Zachariah & Malia"]
["Rodriguez, Braden"," (229) 72-3995"," (229) 72-3995"," Braden.Rodriguez@gmail.com"," Braden.Rodriguez@gmail.com","943 Bay Street Provo, UT 84604","Rodriguez, Braden & Ann"]
["Mckenzie, Chaz"," (565) 482-9648"," (565) 482-9648"," Chaz.Mckenzie@gmail.com"," Chaz.Mckenzie@gmail.com","494 Bridle Lane Provo, UT 84604","Mckenzie, Chaz & Harper"]
["Yoder, Yosef"," (443) 616-2962"," (443) 616-2962"," Yosef.Yoder@gmail.com"," Yosef.Yoder@gmail.com","265 Rose Street Provo, UT 84604","Yoder, Yosef & Kylee"]
["Bass, Kylan"," (489) 443-7640"," (489) 443-7640"," Kylan.Bass@gmail.com"," Kylan.Bass@gmail.com","598 Maple Avenue Provo, UT 84604","Bass, Kylan & Mikaela"]
["Cunningham, Sullivan"," (933) 458-3618"," (933) 458-3618"," Sullivan.Cunningham@gmail.com"," Sullivan.Cunningham@gmail.com","687 River Road Provo, UT 84604","Cunningham, Sullivan & Yareli"]
["Barrett, Harry"," (240) 265-9799"," (240) 265-9799"," Harry.Barrett@gmail.com"," Harry.Barrett@gmail.com","915 Magnolia Court Provo, UT 84604","Barrett, Harry & Evelin"]

{"sheet":"test","index":9,"n_rows":2,"n_cols":7,"rows_kept":2,"cut":false,"hidden":false,"merged":[]}
["Head of Household","Primary","Home","Primary","Home","Address","Couple"]
["Groen, Josh","(616) 841-5674","(616) 841-5674","jhgroen5@gmail.com","jhgroen5@gmail.com","129 West 710 N Orem, UT 84057","Groen, Josh & Rachel"]

{"sheet":"District 4","index":10,"n_rows":14,"n_cols":7,"rows_kept":14,"cut":false,"hidden":false,"merged":[]}
["Mcdowell, Joel"]
["Morgan, Gilbert"," (55) 584-8760"," (55) 584-8760"," Gilbert.Morgan@gmail.com"," Gilbert.Morgan@gmail.com","614 Carriage Drive Provo, UT 84604","Morgan, Gilbert & Abigail"]
["Rocha, Terry"," (740) 722-3151"," (740) 722-3151"," Terry.Rocha@gmail.com"," Terry.Rocha@gmail.com","557 5th Street Provo, UT 84604","Rocha, Terry & Kaley"]
["Espinoza, Ahmad"," (657) 788-5241"," (657) 788-5241"," Ahmad.Espinoza@gmail.com"," Ahmad.Espinoza@gmail.com","106 School Street Provo, UT 84604","Espinoza, Ahmad & Kassandra"]
["Murillo, Jude"," (496) 883-2193"," (496) 883-2193"," Jude.Murillo@gmail.com"," Jude.Murillo@gmail.com","474 Fairview Road Provo, UT 84604","Murillo, Jude & Lesly"]
["Short, Jonathon"," (729) 835-7308"," (729) 835-7308"," Jonathon.Short@gmail.com"," Jonathon.Short@gmail.com","236 Windsor Drive Provo, UT 84604","Short, Jonathon & Presley"]
["Cervantes, Antonio"," (781) 641-3822"," (781) 641-3822"," Antonio.Cervantes@gmail.com"," Antonio.Cervantes@gmail.com","413 2nd Street Provo, UT 84604","Cervantes, Antonio & Samantha"]
["Hunter, Melvin"," (360) 708-5047"," (360) 708-5047"," Melvin.Hunter@gmail.com"," Melvin.Hunter@gmail.com","269 12th Street Provo, UT 84604","Hunter, Melvin & Keyla"]
["Vargas, Michael"," (860) 160-8653"," (860) 160-8653"," Michael.Vargas@gmail.com"," Michael.Vargas@gmail.com","918 Grove Street Provo, UT 84604","Vargas, Michael & Maddison"]
["Moyer, German"," (466) 386-5194"," (466) 386-5194"," German.Moyer@gmail.com"," German.Moyer@gmail.com","181 Summit Street Provo, UT 84604","Moyer, German & Sydney"]
["Todd, Conor"," (688) 244-1155"," (688) 244-1155"," Conor.Todd@gmail.com"," Conor.Todd@gmail.com","955 9th Street West Provo, UT 84604","Todd, Conor & Peyton"]
["Diaz, Kasey"," (226) 40-7402"," (226) 40-7402"," Kasey.Diaz@gmail.com"," Kasey.Diaz@gmail.com","928 Cedar Avenue Provo, UT 84604","Diaz, Kasey & Annie"]
["Spence, Soren"," (621) 445-5951"," (621) 445-5951"," Soren.Spence@gmail.com"," Soren.Spence@gmail.com","389 Fairview Avenue Provo, UT 84604","Spence, Soren & Rosa"]
["Randolph, Jayden"," (979) 585-9546"," (979) 585-9546"," Jayden.Randolph@gmail.com"," Jayden.Randolph@gmail.com","923 Pennsylvania Avenue Provo, UT 84604","Randolph, Jayden & Journey"]